fUSD/lending_fUSD_20240614
["ID","MTS","AMOUNT","RATE_DAILY","PERIOD"]
[329429691,1718335853746,-500.0,0.00024383,2]
[329429692,1718335853762,-500.0,0.00024383,2]
[329429693,1718335853779,-500.0,0.00024383,2]
[329429694,1718335853795,-156.441322,0.00024383,7]
[329429695,1718335853806,-500.0,0.00024383,2]
[329429696,1718335853821,-152.79805,0.00024383,7]
[329429697,1718335853841,-500.0,0.00024383,2]
[329429698,1718335853854,-151.0,0.00024383,7]
[329429699,1718335853868,-1586.4,0.00024383,2]
[329429700,1718335853881,-516.85,0.00024383,2]
[329429701,1718335853893,-1368.18,0.00024383,2]
[329429702,1718335853904,-500.0,0.00024383,2]
[329429703,1718335853917,-500.0,0.00024383,2]
[329429704,1718335853946,-2997.16,0.00024383,2]
[329429705,1718335853959,-265.96359272,0.00024383,2]
[329429706,1718335853989,-500.0,0.00024383,2]
[329429707,1718335854005,-543.19,0.00024383,2]
[329429708,1718335854018,-1526.71,0.00024383,2]
[329429709,1718335854029,-500.0,0.00024383,2]
[329429710,1718335854056,-500.0,0.00024383,2]
[329429711,1718335854072,-500.0,0.00024383,2]
[329429712,1718335854084,-500.0,0.00024383,2]
[329429713,1718335854112,-3651.48,0.00024383,2]
[329429714,1718335854133,-596.58,0.00024383,2]
[329429715,1718335854159,-500.0,0.00024383,2]
[329429716,1718335854175,-500.0,0.00024383,2]
[329429717,1718335854191,-615.52,0.00024383,2]
[329429718,1718335854213,-658.29,0.00024383,2]
[329429719,1718335854234,-500.0,0.00024383,2]
[329429720,1718335854256,-500.0,0.00024383,2]
[329429721,1718335854281,-765.65,0.00024383,2]
[329429722,1718335854310,-500.0,0.00024383,2]
[329429723,1718335854326,-500.0,0.00024383,2]
[329429724,1718335854343,-500.0,0.00024383,2]
[329429725,1718335854362,-500.0,0.00024383,2]
[329429726,1718335854416,-500.0,0.00024383,2]
[329429727,1718335854435,-339.54948736,0.00024383,2]
[329429728,1718335854491,-2457.31051264,0.00024383,2]
[329429729,1718335854507,-763.73,0.00024383,2]
[329429730,1718335854536,-634.29,0.00024383,2]
[329429731,1718335854553,-1169.8,0.00024383,2]
[329429732,1718335854571,-8381.7,0.00024383,2]
[329429733,1718335854595,-500.0,0.00024383,2]
[329429734,1718335854610,-1762.94,0.00024383,2]
[329429735,1718335854640,-500.0,0.00024383,2]
[329429736,1718335854657,-155.203161,0.00024383,7]
[329429737,1718335854670,-773.73,0.00024383,2]
[329429738,1718335854699,-500.0,0.00024383,2]
[329429739,1718335854710,-599.43,0.00024383,2]
[329429740,1718335854722,-500.0,0.00024383,2]
[329429741,1718335854736,-770.66,0.00024383,2]
[329429742,1718335854748,-500.0,0.00024383,2]
[329429743,1718335854759,-916.81,0.00024383,2]
[329429744,1718335854777,-501.12,0.00024383,2]
[329429745,1718335854790,-500.0,0.00024383,2]
[329429746,1718335854806,-1660.32,0.00024383,2]
[329429747,1718335854818,-500.0,0.00024383,2]
[329429748,1718335854835,-8487.13,0.00024383,2]
[329429749,1718335854847,-500.0,0.00024383,2]
[329429750,1718335854858,-1304.89,0.00024383,2]
[329429751,1718335854875,-713.49,0.00024383,2]
[329429752,1718335854888,-500.0,0.00024383,2]
[329429753,1718335854901,-500.0,0.00024383,2]
[329429754,1718335854912,-506.98,0.00024383,2]
[329429755,1718335854924,-500.0,0.00024383,2]
[329429756,1718335854936,-694.74,0.00024383,2]
[329429757,1718335854967,-500.0,0.00024383,2]
[329429758,1718335854982,-500.0,0.00024383,2]
[329429759,1718335854996,-500.0,0.00024383,2]
[329429760,1718335855010,-6456.02,0.00024383,2]
[329429761,1718335855023,-500.0,0.00024383,2]
[329429762,1718335855035,-1796.02,0.00024383,2]
[329429763,1718335855047,-500.0,0.00024383,2]
[329429764,1718335855059,-500.0,0.00024383,2]
[329429765,1718335855076,-3969.58,0.00024383,2]
[329429766,1718335855089,-1312.61,0.00024383,2]
[329429767,1718335855104,-808.25,0.00024383,2]
[329429768,1718335855118,-500.0,0.00024383,2]
[329429769,1718335855129,-1183.75,0.00024383,2]
[329429770,1718335855142,-500.0,0.00024383,2]
[329429771,1718335855171,-500.0,0.00024383,2]
[329429772,1718335855198,-500.0,0.00024383,2]
[329429773,1718335855213,-500.0,0.00024383,2]
[329429774,1718335855226,-500.0,0.00024383,2]
[329429775,1718335855250,-1842.08,0.00024383,2]
[329429776,1718335855263,-1282.76,0.00024383,2]
[329429777,1718335855316,-500.0,0.00024383,2]
[329429778,1718335855330,-500.0,0.00024383,2]
[329429779,1718335855344,-500.0,0.00024383,2]
[329429780,1718335855364,-1251.61,0.00024383,2]
[329429781,1718335855376,-703.2,0.00024383,2]
[329429782,1718335855389,-602.4,0.00024383,2]
[329429783,1718335855414,-154.081501,0.00024383,7]
[329429784,1718335855451,-515.05,0.00024383,2]
[329429785,1718335855476,-500.0,0.00024383,2]
[329429786,1718335855504,-1187.27,0.00024383,2]
[329429787,1718335855517,-500.0,0.00024383,2]
[329429788,1718335855533,-156.77948,0.00024383,7]
[329429789,1718335855545,-1454.94,0.00024383,2]
[329429790,1718335855561,-500.0,0.00024383,2]
[329429791,1718335855573,-772.76,0.00024383,2]
[329429792,1718335855587,-1178.51,0.00024383,2]
[329429793,1718335855600,-1163.26,0.00024383,2]
[329429794,1718335855611,-500.0,0.00024383,2]
[329429795,1718335855623,-981.87,0.00024383,2]
[329429796,1718335855641,-500.0,0.00024383,2]
[329429797,1718335855653,-1400.94,0.00024383,2]
[329429798,1718335855678,-500.0,0.00024383,2]
[329429799,1718335855690,-172.734232,0.00024383,7]
[329429800,1718335855716,-500.0,0.00024383,2]
[329429801,1718335855728,-2376.7,0.00024383,2]
[329429802,1718335855740,-794.74,0.00024383,2]
[329429803,1718335855782,-3892.29,0.00024383,2]
[329429804,1718335855801,-500.0,0.00024383,2]
[329429805,1718335855812,-1219.64,0.00024383,2]
[329429806,1718335855825,-3469.08,0.00024383,2]
[329429807,1718335855837,-1050.52,0.00024383,2]
[329429808,1718335855852,-381.9680861,0.00024383,2]
[329429809,1718335855867,-500.0,0.00024383,2]
[329429810,1718335855888,-500.0,0.00024383,2]
[329429811,1718335855906,-500.0,0.00024383,2]
[329429812,1718335855921,-824.17,0.00024383,2]
[329429813,1718335855934,-1367.53,0.00024383,2]
[329429814,1718335855954,-1974.1,0.00024383,2]
[329429815,1718335855968,-725.32,0.00024383,2]
[329429816,1718335855985,-806.05,0.00024383,2]
[329429817,1718335855997,-1183.54,0.00024383,2]
[329429818,1718335856008,-654.29,0.00024383,2]
[329429819,1718335856019,-1156.56,0.00024383,2]
[329429820,1718335856052,-656.92,0.00024383,2]
[329429821,1718335856064,-500.0,0.00024383,2]
[329429822,1718335856085,-500.0,0.00024383,2]
[329429823,1718335856096,-825.03,0.00024383,2]
[329429824,1718335856118,-732.09,0.00024383,2]
[329429825,1718335856132,-151.733467,0.00024383,7]
[329429826,1718335856144,-1387.68,0.00024383,2]
[329429827,1718335856159,-719.43,0.00024383,2]
[329429828,1718335856175,-757.92,0.00024383,2]
[329429829,1718335856196,-500.0,0.00024383,2]
[329429830,1718335856224,-1969.04,0.00024383,2]
[329429831,1718335856253,-572.65,0.00024383,2]
[329429832,1718335856268,-1231.97,0.00024383,2]
[329429833,1718335856286,-1629.72,0.00024383,2]
[329429834,1718335856296,-673.75,0.00024383,2]
[329429835,1718335856309,-500.0,0.00024383,2]
[329429836,1718335856333,-500.0,0.00024383,2]
[329429837,1718335856346,-1793.32,0.00024383,2]
[329429838,1718335856362,-500.0,0.00024383,2]
[329429839,1718335856378,-1687.22,0.00024383,2]
[329429840,1718335856396,-812.55,0.00024383,2]
[329429841,1718335856408,-151.0,0.00024383,7]
[329429842,1718335856421,-500.0,0.00024383,2]
[329429843,1718335856447,-500.0,0.00024383,2]
[329429844,1718335856472,-878.07,0.00024383,2]
[329429845,1718335856495,-500.0,0.00024383,2]
[329429846,1718335856508,-500.0,0.00024383,2]
[329429847,1718335856522,-773.31,0.00024383,2]
[329429848,1718335856542,-500.0,0.00024383,2]
[329429849,1718335856553,-500.0,0.00024383,2]
[329429850,1718335856565,-783.48,0.00024383,2]
[329429851,1718335856577,-500.0,0.00024383,2]
[329429852,1718335856590,-151.0,0.00024383,7]
[329429853,1718335856600,-2695.68,0.00024383,2]
[329429854,1718335856613,-500.0,0.00024383,2]
[329429855,1718335856627,-500.0,0.00024383,2]
[329429856,1718335856640,-151.0,0.00024383,7]
[329429857,1718335856685,-151.0,0.00024383,7]
[329429858,1718335856706,-500.0,0.00024383,2]
[329429859,1718335856729,-500.0,0.00024383,2]
[329429860,1718335856745,-4539.46,0.00024383,2]
[329429861,1718335856762,-523.14,0.00024383,2]
[329429862,1718335856779,-500.0,0.00024383,2]
[329429863,1718335856793,-197.02,0.00024384,2]
[329429864,1718335856813,-223.88882491,0.0002448,2]
[329429865,1718335856826,-301.32,0.00024521,2]
[329429866,1718335856854,-150.0,0.00024521,2]
[329429867,1718335856867,-150.0,0.00024521,2]
[329429868,1718335856879,-150.0,0.00024521,2]
[329429869,1718335856896,-5674.4751113,0.00024557,2]
[329429870,1718335856907,-11473.43861496,0.00024657,2]
[329429871,1718335856920,-315.13648263,0.00024657,2]
[329429872,1718335856933,-151.2214745,0.00024657,2]
[329429873,1718335856947,-155.57844251,0.00024657,2]
[329429874,1718335856959,-500.0,0.00024657,2]
[329429875,1718335856971,-500.0,0.00024657,2]
[329429876,1718335856987,-500.0,0.00024657,2]
[329429877,1718335857003,-500.0,0.00024657,2]
[329429878,1718335857028,-500.0,0.00024657,2]
[329429879,1718335857046,-500.0,0.00024657,2]
[329429880,1718335857059,-500.0,0.00024657,2]
[329429881,1718335857074,-500.0,0.00024657,2]
[329429882,1718335857086,-500.0,0.00024657,2]
[329429883,1718335857101,-500.0,0.00024657,2]
[329429884,1718335857113,-211.72644505,0.00024657,2]
[329429885,1718335857123,-500.0,0.00024657,2]
[329429886,1718335857139,-500.0,0.00024657,2]
[329429887,1718335857153,-500.0,0.00024657,2]
[329429888,1718335857166,-163.318051,0.00024657,7]
[329429889,1718335857181,-192.98362879,0.00024657,2]
[329429890,1718335857198,-500.0,0.00024657,2]
[329429891,1718335857215,-500.0,0.00024657,2]
[329429892,1718335857230,-500.0,0.00024657,2]
[329429893,1718335857244,-500.0,0.00024657,2]
[329429894,1718335857257,-508.53,0.00024657,2]
[329429895,1718335857271,-500.0,0.00024657,2]
[329429896,1718335857286,-500.0,0.00024657,2]
[329429897,1718335857301,-500.0,0.00024657,2]
[329429898,1718335857312,-500.0,0.00024657,2]
[329429899,1718335857324,-500.0,0.00024657,2]
[329429900,1718335857345,-500.0,0.00024657,2]
[329429901,1718335857357,-500.0,0.00024657,2]
[329429902,1718335857376,-500.0,0.00024657,2]
[329429903,1718335857390,-236.17400386,0.00024657,2]
[329429904,1718335857404,-500.0,0.00024657,2]
[329429905,1718335857424,-500.0,0.00024657,2]
[329429906,1718335857438,-150.0,0.00024657,2]
[329429907,1718335857451,-500.0,0.00024657,2]
[329429908,1718335857462,-500.0,0.00024657,2]
[329429909,1718335857473,-500.0,0.00024657,2]
[329429910,1718335857490,-500.0,0.00024657,2]
[329429911,1718335857512,-500.0,0.00024657,2]
[329429912,1718335857524,-500.0,0.00024657,2]
[329429913,1718335857537,-500.0,0.00024657,2]
[329429914,1718335857556,-500.0,0.00024657,2]
[329429915,1718335857569,-500.0,0.00024657,2]
[329429916,1718335857582,-500.0,0.00024657,2]
[329429917,1718335857593,-666.57,0.00024657,2]
[329429918,1718335857610,-500.0,0.00024657,2]
[329429919,1718335857624,-500.0,0.00024657,2]
[329429920,1718335857642,-500.0,0.00024657,2]
[329429921,1718335857656,-500.0,0.00024657,2]
[329429922,1718335857876,-500.0,0.00024657,2]
[329429923,1718335857893,-500.0,0.00024657,2]
[329429924,1718335857912,-500.0,0.00024657,2]
[329429925,1718335857932,-500.0,0.00024657,2]
[329429926,1718335857955,-500.0,0.00024657,2]
[329429927,1718335857984,-500.0,0.00024657,2]
[329429928,1718335857999,-500.0,0.00024657,2]
[329429929,1718335858010,-500.0,0.00024657,2]
[329429930,1718335858022,-500.0,0.00024657,2]
[329429931,1718335858051,-500.0,0.00024657,2]
[329429932,1718335858063,-500.0,0.00024657,2]
[329429933,1718335858081,-500.0,0.00024657,2]
[329429934,1718335858105,-500.0,0.00024657,2]
[329429935,1718335858130,-500.0,0.00024657,2]
[329429936,1718335858141,-500.0,0.00024657,2]
[329429937,1718335858162,-500.0,0.00024657,2]
[329429938,1718335858182,-500.0,0.00024657,2]
[329429939,1718335858195,-500.0,0.00024657,2]
[329429940,1718335858206,-500.0,0.00024657,2]
[329429941,1718335858217,-500.0,0.00024657,2]
[329429942,1718335858228,-158.826008,0.00024657,7]
[329429943,1718335858240,-1586.4,0.00024657,2]
[329429944,1718335858253,-516.85,0.00024657,2]
[329429945,1718335858264,-1368.18,0.00024657,2]
[329429946,1718335858286,-500.0,0.00024657,2]
[329429947,1718335858299,-500.0,0.00024657,2]
[329429948,1718335858316,-2997.16,0.00024657,2]
[329429949,1718335858330,-500.0,0.00024657,2]
[329429950,1718335858359,-543.19,0.00024657,2]
[329429951,1718335858388,-1526.71,0.00024657,2]
[329429952,1718335858408,-500.0,0.00024657,2]
[329429953,1718335858424,-500.0,0.00024657,2]
[329429954,1718335858434,-500.0,0.00024657,2]
[329429955,1718335858458,-500.0,0.00024657,2]
[329429956,1718335858475,-3651.48,0.00024657,2]
[329429957,1718335858504,-596.58,0.00024657,2]
[329429958,1718335858515,-500.0,0.00024657,2]
[329429959,1718335858527,-500.0,0.00024657,2]
[329429960,1718335858552,-615.52,0.00024657,2]
[329429961,1718335858566,-658.29,0.00024657,2]
[329429962,1718335858592,-500.0,0.00024657,2]
[329429963,1718335858611,-500.0,0.00024657,2]
[329429964,1718335858623,-765.65,0.00024657,2]
[329429965,1718335858636,-500.0,0.00024657,2]
[329429966,1718335858649,-500.0,0.00024657,2]
[329429967,1718335858660,-500.0,0.00024657,2]
[329429968,1718335858673,-500.0,0.00024657,2]
[329429969,1718335858705,-500.0,0.00024657,2]
[329429970,1718335858725,-2796.86,0.00024657,2]
[329429971,1718335858749,-763.73,0.00024657,2]
[329429972,1718335858775,-634.29,0.00024657,2]
[329429973,1718335858796,-1169.8,0.00024657,2]
[329429974,1718335858810,-8381.7,0.00024657,2]
[329429975,1718335858831,-500.0,0.00024657,2]
[329429976,1718335858846,-1762.94,0.00024657,2]
[329429977,1718335858866,-500.0,0.00024657,2]
[329429978,1718335858890,-773.73,0.00024657,2]
[329429979,1718335858924,-500.0,0.00024657,2]
[329429980,1718335858951,-599.43,0.00024657,2]
[329429981,1718335858961,-500.0,0.00024657,2]
[329429982,1718335858988,-770.66,0.00024657,2]
[329429983,1718335859001,-500.0,0.00024657,2]
[329429984,1718335859012,-916.81,0.00024657,2]
[329429985,1718335859024,-501.12,0.00024657,2]
[329429986,1718335859056,-500.0,0.00024657,2]
[329429987,1718335859085,-1660.32,0.00024657,2]
[329429988,1718335859098,-500.0,0.00024657,2]
[329429989,1718335859109,-8487.13,0.00024657,2]
[329429990,1718335859122,-500.0,0.00024657,2]
[329429991,1718335859133,-1304.89,0.00024657,2]
[329429992,1718335859148,-713.49,0.00024657,2]
[329429993,1718335859190,-500.0,0.00024657,2]
[329429994,1718335859206,-500.0,0.00024657,2]
[329429995,1718335859220,-506.98,0.00024657,2]
[329429996,1718335859234,-694.74,0.00024657,2]
[329429997,1718335859245,-500.0,0.00024657,2]
[329429998,1718335859263,-500.0,0.00024657,2]
[329429999,1718335859283,-500.0,0.00024657,2]
[329430000,1718335859297,-500.0,0.00024657,2]
[329430001,1718335859311,-6456.02,0.00024657,2]
[329430002,1718335859324,-500.0,0.00024657,2]
[329430003,1718335859337,-1796.02,0.00024657,2]
[329430004,1718335859349,-500.0,0.00024657,2]
[329430005,1718335859361,-500.0,0.00024657,2]
[329430006,1718335859373,-3969.58,0.00024657,2]
[329430007,1718335859385,-1312.61,0.00024657,2]
[329430008,1718335859411,-808.25,0.00024657,2]
[329430009,1718335859424,-500.0,0.00024657,2]
[329430010,1718335859435,-1183.75,0.00024657,2]
[329430011,1718335859450,-561.63435208,0.00024657,2]
[329430012,1718335859465,-500.0,0.00024657,2]
[329430013,1718335859480,-500.0,0.00024657,2]
[329430014,1718335859492,-500.0,0.00024657,2]
[329430015,1718335859503,-500.0,0.00024657,2]
[329430016,1718335859515,-1842.08,0.00024657,2]
[329430017,1718335859528,-1282.76,0.00024657,2]
[329430018,1718335859540,-500.0,0.00024657,2]
[329430019,1718335859573,-500.0,0.00024657,2]
[329430020,1718335859585,-500.0,0.00024657,2]
[329430021,1718335859596,-1251.61,0.00024657,2]
[329430022,1718335859609,-703.2,0.00024657,2]
[329430023,1718335859621,-602.4,0.00024657,2]
[329430024,1718335859634,-515.05,0.00024657,2]
[329430025,1718335859646,-500.0,0.00024657,2]
[329430026,1718335859666,-1187.27,0.00024657,2]
[329430027,1718335859678,-500.0,0.00024657,2]
[329430028,1718335859696,-1454.94,0.00024657,2]
[329430029,1718335859719,-500.0,0.00024657,2]
[329430030,1718335859733,-772.76,0.00024657,2]
[329430031,1718335859746,-1178.51,0.00024657,2]
[329430032,1718335859759,-1163.26,0.00024657,2]
[329430033,1718335859775,-500.0,0.00024657,2]
[329430034,1718335859791,-981.87,0.00024657,2]
[329430035,1718335859803,-500.0,0.00024657,2]
[329430036,1718335859828,-1400.94,0.00024657,2]
[329430037,1718335859855,-500.0,0.00024657,2]
[329430038,1718335859869,-500.0,0.00024657,2]
[329430039,1718335859886,-2376.7,0.00024657,2]
[329430040,1718335859912,-794.74,0.00024657,2]
[329430041,1718335859931,-3892.29,0.00024657,2]
[329430042,1718335859974,-500.0,0.00024657,2]
[329430043,1718335859995,-1219.64,0.00024657,2]
[329430044,1718335860009,-3469.08,0.00024657,2]
[329430045,1718335860023,-1050.52,0.00024657,2]
[329430046,1718335860042,-500.0,0.00024657,2]
[329430047,1718335860073,-500.0,0.00024657,2]
[329430048,1718335860112,-500.0,0.00024657,2]
[329430049,1718335860123,-824.17,0.00024657,2]
[329430050,1718335860139,-1367.53,0.00024657,2]
[329430051,1718335860151,-1974.1,0.00024657,2]
[329430052,1718335860170,-725.32,0.00024657,2]
[329430053,1718335860181,-806.05,0.00024657,2]
[329430054,1718335860193,-1183.54,0.00024657,2]
[329430055,1718335860207,-654.29,0.00024657,2]
[329430056,1718335860219,-656.92,0.00024657,2]
[329430057,1718335860230,-500.0,0.00024657,2]
[329430058,1718335860241,-1156.56,0.00024657,2]
[329430059,1718335860265,-500.0,0.00024657,2]
[329430060,1718335860278,-825.03,0.00024657,2]
[329430061,1718335860291,-732.09,0.00024657,2]
[329430062,1718335860302,-1387.68,0.00024657,2]
[329430063,1718335860314,-757.92,0.00024657,2]
[329430064,1718335860326,-719.43,0.00024657,2]
[329430065,1718335860339,-1969.04,0.00024657,2]
[329430066,1718335860352,-500.0,0.00024657,2]
[329430067,1718335860366,-572.65,0.00024657,2]
[329430068,1718335860396,-932.40088692,0.00024657,2]
[329430069,1718335860598,-299.56911308,0.00024657,2]
[329430070,1718335860621,-1629.72,0.00024657,2]
[329430071,1718335860633,-673.75,0.00024657,2]
[329430072,1718335860644,-500.0,0.00024657,2]
[329430073,1718335860656,-500.0,0.00024657,2]
[329430074,1718335860669,-1793.32,0.00024657,2]
[329430075,1718335860688,-500.0,0.00024657,2]
[329430076,1718335860702,-1687.22,0.00024657,2]
[329430077,1718335860714,-812.55,0.00024657,2]
[329430078,1718335860731,-500.0,0.00024657,2]
[329430079,1718335860743,-500.0,0.00024657,2]
[329430080,1718335860755,-878.07,0.00024657,2]
[329430081,1718335860766,-500.0,0.00024657,2]
[329430082,1718335860778,-500.0,0.00024657,2]
[329430083,1718335860797,-773.31,0.00024657,2]
[329430084,1718335860807,-500.0,0.00024657,2]
[329430085,1718335860818,-500.0,0.00024657,2]
[329430086,1718335860829,-783.48,0.00024657,2]
[329430087,1718335860841,-500.0,0.00024657,2]
[329430088,1718335860860,-151.0,0.00024657,7]
[329430089,1718335860878,-2695.68,0.00024657,2]
[329430090,1718335860890,-500.0,0.00024657,2]
[329430091,1718335860901,-500.0,0.00024657,2]
[329430092,1718335860913,-500.0,0.00024657,2]
[329430093,1718335860924,-500.0,0.00024657,2]
[329430094,1718335860939,-4539.46,0.00024657,2]
[329430095,1718335860953,-523.14,0.00024657,2]
[329430096,1718335860966,-500.0,0.00024657,2]
[329430097,1718335860979,-19071.6334,0.00024828,2]
[329430098,1718335860990,-665.1992,0.00024828,2]
[329430099,1718335861008,-492.43,0.00024887,2]
[329430100,1718335861022,-489.0,0.000249,8]
[329430101,1718335861033,-305.0,0.000249,2]
[329430102,1718335861045,-151.0,0.000249,3]
[329430103,1718335861057,-511.04816694,0.00024928,2]
[329430104,1718335861068,-15651.43505464,0.00024928,2]
[329430105,1718335861093,-151.0,0.00024928,7]
[329430106,1718335861105,-3514.65486946,0.00024929,2]
[329430107,1718335861131,-218.47939903,0.00024929,2]
[329430108,1718335861144,-108738.19797165,0.0002493,2]
[329430109,1718335861534,-500.0,0.00024109,2]
[329430110,1718335861545,-500.0,0.00024383,2]
[329430111,1718335861557,-500.0,0.00024657,2]
[329430112,1718335861569,-110609.47270109,0.0002493,2]
[329430113,1718336024392,192000.0,0.00014,2]
[329430114,1718336024456,2077993.27155202,0.00014,2]
[329430115,1718336044756,40384.78633033,0.000118,2]
[329430116,1718336051237,15625.13815425,0.00011,2]
[329430117,1718336070050,3901.11799853,0.0001298,2]
[329430118,1718336197708,1400.09669462,0.00013,2]
[329430119,1718336203791,12713.85529923,0.00028,90]
[329430120,1718336217985,288.44784059,0.000125,2]
[329430122,1718336364577,312089.49355011,0.000125,2]
[329430123,1718336378105,349.40398673,0.000125,2]
[329430124,1718336398049,323.76843846,0.000125,2]
[329430126,1718336657203,181.63045206,0.000125,2]
[329430127,1718336657373,948.37921266,0.000125,2]
[329430128,1718336663058,268.70264507,0.000125,2]
[329430129,1718336670609,11150.42335326,0.000125,2]
[329430130,1718336673854,551.73748413,0.000125,2]
[329430131,1718336677929,4762.60503946,0.000125,2]
[329430132,1718336683317,439.62180926,0.000125,2]
[329430133,1718336689781,554.92771792,0.000125,2]
[329430134,1718336695978,4762.60503946,0.000125,2]
[329430135,1718336708107,17346.08566495,0.000125,2]
[329430136,1718336838279,-150.00203062,0.00012499,2]
[329430137,1718336848145,-149.99796938,0.00012499,2]
[329430138,1718336848183,-150.00203062,0.000125,2]
[329430139,1718336960133,-287.3583,0.000124,2]
[329430140,1718336960182,-150.0,0.00012499,2]
[329430141,1718336960230,-150.0,0.00012499,2]
[329430142,1718336960263,-2292.79872017,0.000125,2]
[329430143,1718336960319,-4038.7576569,0.000125,2]
[329430144,1718336960355,-355.79,0.00014915,2]
[329430145,1718336960409,-153.27,0.0001499,2]
[329430146,1718336960448,-676.07699637,0.00014998,2]
[329430157,1718337033063,-401.61999996,0.000125,2]
[329430158,1718337033078,-301.90641716,0.000125,2]
[329430159,1718337033097,-475.37181148,0.000125,2]
[329430160,1718337033109,-153.27,0.0001499,2]
[329430161,1718337033121,-42.75213,0.00014998,2]
[329430162,1718337033131,-541.40605852,0.00015,2]
[329430163,1718337033149,-930.17478557,0.00015,2]
[329430164,1718337033188,-3064.60664569,0.00015,2]
[329430165,1718337033230,-11085.82667898,0.00015,2]
[329430166,1718337033344,-2522.06617273,0.00015,2]
[329430167,1718337033380,-7384.92556584,0.00015,2]
[329430168,1718337033411,-2197.83270384,0.00015,2]
[329430169,1718337033443,-2102.4993963,0.00015,2]
[329430170,1718337033462,-681.39069848,0.00015,2]
[329430171,1718337033545,-2456.09841182,0.00015,2]
[329430172,1718337033616,-35762.33526674,0.00015,2]
[329430173,1718337033640,-60263.09069629,0.00015,2]
[329430174,1718337033655,-6075.0,0.00015,2]
[329430175,1718337033693,-700.0,0.00015,2]
[329430176,1718337033724,-27343.78418618,0.00015,2]
[329430177,1718337033797,-809.73333754,0.00015,2]
[329430178,1718337033818,-8501.16983801,0.00015,2]
[329430179,1718337033860,-1666.21666469,0.00015,2]
[329430180,1718337033877,-741.8811006,0.00015,2]
[329430181,1718337033909,-363.76455997,0.00015,2]
[329430182,1718337033936,-500.77266238,0.00015,2]
[329430183,1718337034104,-822832.37623563,0.00015,2]
[329430184,1718337034129,-338.62054237,0.00015389,2]
[329430185,1718337034161,-202.4857492,0.00015489,2]
[329430186,1718337034195,-163.78,0.00015689,2]
[329430187,1718337034226,-7130.83611314,0.00016299,2]
[329430188,1718337034261,-499.99,0.00016466,2]
[329430189,1718337034282,-150.0,0.00016466,2]
[329430190,1718337034304,-178.26417708,0.00017154,2]
[329430191,1718337034336,-1078.09225663,0.00017254,2]
[329430192,1718337034376,-155.70037917,0.00017254,2]
[329430193,1718337034389,-7130.83611313,0.00017535,2]
[329430194,1718337034409,-547.93,0.0001862,2]
[329430195,1718337034421,-7130.83611313,0.00018772,2]
[329430196,1718337034436,-439.11,0.00019435,2]
[329430197,1718337034465,-250.0,0.00019543,2]
[329430198,1718337034497,-200.0,0.0001957,2]
[329430199,1718337034511,-585.14362657,0.000199,3]
[329430200,1718337034534,-176.89,0.00019946,2]
[329430201,1718337034559,-210.10149297,0.0002,2]
[329430202,1718337034591,-151.22903557,0.0002,2]